bitfinex/quotes_BTCUSD_20240823
["timestamp","ask_amount","ask_price","bid_price","bid_amount"]
[1724439575945,0.00190861,63284.0,63283.0,0.85436]
[1724439576135,0.00190861,63284.0,63283.0,0.85036]
[1724439576476,0.00290861,63284.0,63283.0,0.85836]
[1724439576841,0.00190861,63284.0,63283.0,0.53432]
[1724439577036,0.00190861,63284.0,63283.0,0.85036]
[1724439577209,0.00190861,63284.0,63283.0,1.1724]
[1724439577384,0.00190861,63284.0,63283.0,1.1664]
[1724439577385,0.00090861,63284.0,63283.0,1.1664]
[1724439577585,0.00190861,63284.0,63283.0,1.1664]
[1724439577785,0.00190861,63284.0,63283.0,1.1744]
[1724439577786,0.00290861,63284.0,63283.0,1.1744]
[1724439577993,0.00290861,63284.0,63283.0,1.1664]
[1724439578192,0.00290861,63284.0,63283.0,1.48244]
[1724439578397,0.00290861,63284.0,63283.0,1.64644298]
[1724439579562,0.00390861,63284.0,63283.0,1.65344298]
[1724439581009,0.00390861,63284.0,63283.0,1.1734]
[1724439581789,0.00390861,63284.0,63283.0,1.48944]
[1724439583172,0.00390861,63284.0,63283.0,0.65476]
[1724439583397,0.00390861,63284.0,63283.0,0.009]
[1724439583599,0.10390861,63284.0,63283.0,0.009]
[1724439583884,0.10390861,63284.0,63283.0,0.16702]
[1724439584034,0.1037782,63284.0,63283.0,0.009]
[1724439584889,0.0037782,63284.0,63283.0,0.009]
[1724439585037,0.0037782,63284.0,63283.0,0.16702]
[1724439585242,0.0037782,63284.0,63283.0,0.48306]
[1724439585459,0.0037782,63284.0,63283.0,0.16702]
[1724439585839,0.0037782,63284.0,63283.0,0.48306]
[1724439586337,0.0037782,63284.0,63283.0,0.16702]
[1724439586544,0.0037782,63284.0,63283.0,0.009]
[1724439586721,0.0037782,63284.0,63283.0,0.16702]
[1724439586923,0.0037782,63284.0,63283.0,0.009]
[1724439587129,0.5037782,63284.0,63283.0,0.16702]
[1724439587327,0.6037782,63284.0,63283.0,0.16702]
[1724439588009,0.5037782,63284.0,63283.0,0.9941]
[1724439588897,0.5037782,63284.0,63283.0,0.9934]
[1724439590114,0.5037782,63284.0,63283.0,0.0083]
[1724439590323,0.5037782,63284.0,63283.0,0.16632]
[1724439590740,0.5037782,63284.0,63283.0,0.0083]
[1724439591526,0.5037782,63284.0,63283.0,0.16632]
[1724439591741,0.5037782,63284.0,63283.0,0.0083]
[1724439591945,0.5037782,63284.0,63283.0,0.16632]
[1724439592358,0.80637162,63284.0,63283.0,0.0083]
[1724439592528,1.27608862,63284.0,63283.0,0.0083]
[1724439592731,1.11807162,63284.0,63283.0,0.0083]
[1724439593151,1.27608862,63284.0,63283.0,0.0083]
[1724439593289,1.11807162,63284.0,63283.0,0.0083]
[1724439593734,0.8154782,63284.0,63283.0,0.0083]
[1724439595051,0.9734952,63284.0,63283.0,0.0083]
[1724439595491,0.8154782,63284.0,63283.0,0.0083]
[1724439596154,1.75482362,63284.0,63283.0,0.0083]
[1724439596351,0.9781782,63284.0,63283.0,0.0083]
[1724439596558,0.8154782,63284.0,63283.0,0.0083]
[1724439596788,0.8124782,63284.0,63277.0,0.316068]
[1724439596973,0.1,63283.0,63277.0,0.316068]
[1724439597223,0.1,63283.0,63279.0,0.158027]
[1724439597934,0.1,63283.0,63277.0,0.316068]
[1724439598108,0.1,63283.0,63279.0,0.158028]
[1724439598272,0.1,63283.0,63280.0,0.158026]
[1724439598476,0.1,63283.0,63279.0,0.158029]
[1724439598889,0.1,63283.0,63280.0,0.158025]
[1724439599092,0.1,63283.0,63279.0,0.158029]
[1724439599293,0.1,63283.0,63279.0,0.160029]
[1724439599496,0.1,63283.0,63279.0,0.161029]
[1724439600342,0.1,63283.0,63282.0,0.790112]
[1724439600562,0.1,63283.0,63279.0,0.003]
[1724439600563,0.4666,63283.0,63279.0,0.003]
[1724439600751,0.1,63283.0,63279.0,0.003]
[1724439600923,0.1,63283.0,63280.0,0.316051]
[1724439601140,0.1,63283.0,63282.0,0.474067]
[1724439601821,0.09961962,63283.0,63282.0,0.474067]
[1724439602022,0.09961962,63283.0,63282.0,0.158022]
[1724439602271,0.09961962,63283.0,63282.0,0.474067]
[1724439602450,0.09961962,63283.0,63282.0,0.790112]
[1724439602650,0.09961962,63283.0,63282.0,0.792112]
[1724439603394,0.09961962,63283.0,63282.0,0.477067]
[1724439604208,0.09961962,63283.0,63282.0,0.16028574]
[1724439604411,0.09961962,63283.0,63282.0,0.00226374]
[1724439604610,0.09961962,63283.0,63282.0,0.00326374]
[1724439604831,0.92447962,63283.0,63282.0,0.00326374]
[1724439605030,1.24051962,63283.0,63282.0,0.00326374]
[1724439605240,1.24051962,63283.0,63282.0,0.00126374]
[1724439605241,1.54311304,63283.0,63282.0,0.00126374]
[1724439605633,1.31752044,63283.0,63282.0,0.00426374]
[1724439605810,0.45041962,63283.0,63282.0,0.00326374]
[1724439606013,0.60843962,63283.0,63282.0,0.00026374]
[1724439606237,0.60843962,63283.0,63282.0,0.00926374]
[1724439606238,1.22907304,63283.0,63282.0,0.00926374]
[1724439606415,0.91303304,63283.0,63282.0,0.00926374]
[1724439606616,0.31351962,63283.0,63282.0,0.00926374]
[1724439607197,0.31251962,63283.0,63282.0,0.00826374]
[1724439607660,0.31251962,63283.0,63282.0,0.00926374]
[1724439607869,0.32438507,63283.0,63282.0,0.00926374]
[1724439608591,0.11248507,63283.0,63282.0,0.00926374]
[1724439608791,0.11148507,63283.0,63282.0,0.00126374]
[1724439609190,0.11148507,63283.0,63282.0,0.00426374]
[1724439609620,0.11239368,63283.0,63282.0,0.00126374]
[1724439609810,0.11239292,63283.0,63282.0,0.00426374]
[1724439611347,0.77448634,63283.0,63282.0,0.00426374]
[1724439611518,1.27154634,63283.0,63282.0,0.00426374]
[1724439611717,1.90362634,63283.0,63282.0,0.00426374]
[1724439611960,1.58758634,63283.0,63282.0,0.00426374]
[1724439612391,0.11239292,63283.0,63282.0,0.00426374]
[1724439615034,0.54434615,63283.0,63282.0,0.00426374]
[1724439615436,0.57300634,63283.0,63282.0,0.00426374]
[1724439615591,1.35193544,63283.0,63282.0,0.00426374]
[1724439615792,1.35193544,63283.0,63279.0,0.000826]
[1724439615793,0.475082,63280.0,63279.0,0.000826]
[1724439616024,1.64145646,63280.0,63279.0,0.000826]
[1724439616224,1.80232892,63280.0,63279.0,0.000826]
[1724439616423,1.82532892,63280.0,63279.0,0.000826]
[1724439617412,1.19221892,63280.0,63279.0,0.000826]
[1724439617639,1.16921892,63280.0,63279.0,0.000826]
[1724439617884,1.0611115,63280.0,63279.0,0.000826]
[1724439618154,1.26455097,63280.0,63279.0,0.000826]
[1724439618412,1.58060597,63280.0,63279.0,0.000826]
[1724439618603,1.64990726,63280.0,63279.0,0.000826]
[1724439618838,1.59161112,63280.0,63279.0,0.001826]
[1724439619040,1.60161112,63280.0,63279.0,0.001826]
[1724439619598,1.39817165,63280.0,63279.0,0.001826]
[1724439619809,1.15309812,63280.0,63279.0,0.001826]
[1724439620017,1.62489331,63280.0,63279.0,0.001826]
[1724439620347,2.10592709,63280.0,63279.0,0.001826]
[1724439620685,2.10416514,63280.0,63279.0,0.001826]
[1724439621065,2.10816514,63280.0,63279.0,0.001826]
[1724439621603,2.01352369,63280.0,63279.0,0.001826]
[1724439621807,2.01352481,63280.0,63279.0,0.001826]
[1724439622375,2.01352481,63280.0,63272.0,0.000826]
[1724439622376,1.355515,63273.0,63272.0,0.000826]
[1724439622585,1.88114419,63273.0,63272.0,0.000826]
[1724439622795,1.95109444,63273.0,63272.0,0.000826]
[1724439622996,1.85153802,63273.0,63272.0,0.000826]
[1724439623197,1.80425509,63273.0,63272.0,0.000826]
[1724439623617,1.80725509,63273.0,63272.0,0.000826]
[1724439624805,1.78310842,63273.0,63272.0,0.000826]
[1724439624940,1.81025709,63273.0,63272.0,0.000826]
[1724439625767,0.51614209,63273.0,63272.0,0.000826]
[1724439625965,1.30636709,63273.0,63272.0,0.000826]
[1724439626202,1.64545709,63273.0,63272.0,0.000826]
[1724439626399,1.80943587,63273.0,63272.0,0.000826]
[1724439626896,0.47424,63259.0,63258.0,0.00826]
[1724439627102,0.58611072,63259.0,63258.0,0.00826]
[1724439627303,0.872637,63256.0,63255.0,0.00827]
[1724439627508,1.20068272,63256.0,63255.0,0.00827]
[1724439627705,1.48564604,63256.0,63255.0,0.00827]
[1724439627892,0.77669122,63244.0,63243.0,0.00012]
[1724439628094,1.20479694,63244.0,63243.0,0.00012]
[1724439628902,1.37289694,63244.0,63243.0,0.00012]
[1724439629106,1.46938214,63244.0,63243.0,0.00012]
[1724439629309,1.48509694,63244.0,63243.0,0.00012]
[1724439629520,0.316279,63236.0,63232.0,0.0119156]
[1724439629723,0.158145,63233.0,63232.0,0.0119156]
[1724439630187,0.574435,63233.0,63232.0,0.0119156]
[1724439630774,0.97840434,63233.0,63232.0,0.0119156]
[1724439630968,0.58631169,63233.0,63232.0,0.0119156]
[1724439631177,0.58731182,63233.0,63232.0,0.0119156]
[1724439631381,0.101,63233.0,63232.0,0.0119156]
[1724439631782,0.259145,63233.0,63232.0,0.0119156]
[1724439631972,0.101,63233.0,63232.0,0.0119156]
[1724439632835,0.259145,63233.0,63232.0,0.0119156]
[1724439633036,0.9177391,63233.0,63232.0,0.0119156]
[1724439633209,1.2350291,63233.0,63232.0,0.0119156]
[1724439633610,0.9187391,63233.0,63232.0,0.0119156]
[1724439633879,0.576435,63233.0,63232.0,0.0809156]
[1724439634074,0.890725,63233.0,63232.0,0.0119156]
[1724439634304,0.904725,63233.0,63232.0,0.0119156]
[1724439634704,1.21889272,63233.0,63232.0,0.0119156]
[1724439635041,1.44338851,63233.0,63232.0,0.0119156]
[1724439635244,1.45638851,63233.0,63232.0,0.0119156]
[1724439635370,1.44338851,63233.0,63232.0,0.0119156]
[1724439635570,1.46638851,63233.0,63232.0,0.0127406]
[1724439635781,1.48358851,63233.0,63232.0,9.1e-07]
[1724439635958,1.49658851,63233.0,63232.0,9.1e-07]
[1724439636160,1.37459272,63233.0,63232.0,9.1e-07]
[1724439636356,1.69088272,63233.0,63232.0,9.1e-07]
[1724439636609,1.67488272,63233.0,63232.0,9.1e-07]
[1724439636860,1.69088272,63233.0,63232.0,9.1e-07]
[1724439637073,1.8548615,63233.0,63232.0,9.1e-07]
[1724439637270,1.8548615,63233.0,63223.0,0.00827]
[1724439637271,1.107172,63224.0,63223.0,0.00827]
[1724439637487,1.49796542,63224.0,63223.0,0.00827]
[1724439637707,1.92618053,63224.0,63223.0,0.00827]
[1724439637893,1.94918053,63224.0,63223.0,0.00827]
[1724439638134,1.94918053,63224.0,63219.0,0.00827]
[1724439638135,1.508797,63220.0,63219.0,0.00827]
[1724439638327,1.509797,63220.0,63219.0,0.00827]
[1724439638503,1.64709031,63220.0,63219.0,0.00827]
[1724439638726,1.634797,63220.0,63219.0,0.00827]
[1724439638925,1.315442,63220.0,63219.0,0.00827]
[1724439639175,1.47942078,63220.0,63219.0,0.00827]
[1724439639403,0.790937,63216.0,63215.0,0.00825]
[1724439639568,1.59240542,63216.0,63215.0,0.00825]
[1724439639771,1.92598042,63216.0,63215.0,0.00825]
[1724439639981,1.94998042,63216.0,63215.0,0.00825]
[1724439640227,1.94998042,63216.0,63201.0,0.1]
[1724439640228,1.72643842,63209.0,63201.0,0.1]
[1724439640428,1.9729172,63209.0,63201.0,0.1]
[1724439640610,2.0959172,63209.0,63201.0,0.1]
[1724439640994,2.0959172,63209.0,63208.0,0.00691817]
[1724439641476,1.94093842,63209.0,63208.0,0.00691817]
[1724439641713,1.93193842,63209.0,63208.0,0.00691817]
[1724439642237,1.94493842,63209.0,63208.0,0.00691817]
[1724439642474,1.79484384,63202.0,63201.0,0.1]
[1724439642746,1.80869542,63202.0,63201.0,0.1]
[1724439642999,1.61425042,63202.0,63201.0,0.1]
[1724439643209,1.19370542,63202.0,63201.0,0.1677]
[1724439643403,0.1,63202.0,63201.0,0.2507]
[1724439643823,0.013,63209.0,63202.0,0.316444]
[1724439644007,0.04933374,63214.0,63205.0,0.1534]
[1724439644243,0.04933374,63214.0,63208.0,0.0557]
[1724439644421,0.158196,63213.0,63208.0,0.0557]
[1724439644548,0.014,63209.0,63208.0,0.0557]
[1724439645075,0.474615,63209.0,63208.0,0.0417]
[1724439645480,0.474615,63209.0,63201.0,0.1]
[1724439645481,0.791112,63202.0,63201.0,0.1]
[1724439645879,0.891112,63202.0,63201.0,0.1]
[1724439646095,0.574667,63202.0,63201.0,0.1]
[1724439646435,0.1,63202.0,63201.0,0.1]
[1724439646753,0.1,63202.0,63195.0,0.237739]
[1724439646957,0.1,63202.0,63196.0,0.240136]
[1724439647109,0.15821,63207.0,63197.0,0.158234]
[1724439647309,0.1,63206.0,63198.0,0.240131]
[1724439647510,0.1,63208.0,63199.0,0.083]
[1724439647880,0.474667,63202.0,63201.0,0.003]
[1724439648071,0.474667,63202.0,63201.0,0.0681]
[1724439648271,0.574667,63202.0,63201.0,0.0651]
[1724439648491,0.891112,63202.0,63201.0,0.0651]
[1724439648705,0.574667,63202.0,63201.0,0.0651]
[1724439648933,0.258222,63202.0,63201.0,0.0651]
[1724439649209,0.258222,63202.0,63201.0,0.0681]
[1724439649408,0.1,63202.0,63201.0,0.0681]
[1724439649609,0.158215,63205.0,63201.0,0.0681]
[1724439650038,0.158218,63204.0,63201.0,0.0681]
[1724439650258,0.1,63204.0,63203.0,0.15822]
[1724439650456,0.1,63204.0,63203.0,0.0804]
[1724439650576,0.1,63204.0,63203.0,0.1493]
[1724439650780,0.1,63204.0,63203.0,0.15246412]
[1724439650980,0.1,63204.0,63203.0,0.30752]
[1724439651175,0.1,63204.0,63203.0,0.62712398]
[1724439651379,0.1,63213.0,63206.0,0.158211]
[1724439651624,0.04996472,63216.0,63209.0,0.0671]
[1724439651828,0.04996472,63216.0,63209.0,0.0621]
[1724439652023,0.316346,63222.0,63209.0,0.0621]
[1724439652282,0.158196,63213.0,63209.0,0.0601]
[1724439652694,0.316378,63216.0,63209.0,0.0601]
[1724439652908,0.158196,63213.0,63209.0,0.0601]
[1724439653119,0.158202,63211.0,63209.0,0.0601]
[1724439653315,0.06039481,63222.0,63209.0,0.0601]
[1724439653591,0.158195,63213.0,63209.0,0.0601]
[1724439653915,0.1,63212.0,63209.0,0.0601]
[1724439654097,0.158202,63210.0,63209.0,0.0601]
[1724439654296,0.158202,63210.0,63200.0,0.0863]
[1724439654297,0.416405,63210.0,63200.0,0.0863]
[1724439654506,0.61901442,63207.0,63200.0,0.0863]
[1724439654700,0.1,63209.0,63200.0,0.0863]
[1724439654701,0.158224,63202.0,63200.0,0.0863]
[1724439654876,0.15822,63203.0,63189.0,0.31651]
[1724439655075,0.258223,63202.0,63193.0,0.158243]
[1724439655278,0.258223,63202.0,63194.0,0.158242]
[1724439655279,0.1,63202.0,63194.0,0.158242]
[1724439655457,0.1,63202.0,63191.0,0.316497]
[1724439655458,0.258225,63202.0,63195.0,0.0699]
[1724439655658,0.258225,63202.0,63200.0,0.001]
[1724439655974,0.474675,63201.0,63200.0,0.001]
[1724439656163,0.474675,63201.0,63195.0,0.0699]
[1724439656164,0.41645,63201.0,63195.0,0.0699]
[1724439656553,0.258229,63200.0,63195.0,0.0699]
[1724439656869,0.15823,63199.0,63195.0,0.0699]
[1724439657073,0.1,63200.0,63195.0,0.0699]
[1724439657503,0.001,63202.0,63195.0,0.0699]
[1724439657685,0.1,63203.0,63195.0,0.0699]
[1724439657686,0.158221,63203.0,63195.0,0.0749]
[1724439657885,0.1,63202.0,63195.0,0.1572]
[1724439658085,0.1,63204.0,63195.0,0.1612]
[1724439658536,0.1,63204.0,63197.0,0.158235]
[1724439658904,0.66830588,63207.0,63195.0,0.1522]
[1724439658905,0.1,63206.0,63196.0,0.00316445]
[1724439659475,0.04929146,63207.0,63196.0,0.00316445]
[1724439659676,0.001,63204.0,63195.0,0.1542]
[1724439659876,0.001,63204.0,63196.0,0.158237]
[1724439660300,0.32171075,63204.0,63195.0,0.311264]
[1724439660483,0.32171075,63204.0,63195.0,0.153026]
[1724439660484,0.101,63204.0,63195.0,0.153026]
[1724439660720,0.101,63204.0,63195.0,0.313265]
[1724439660901,0.15822,63203.0,63195.0,0.311265]
[1724439661123,0.158229,63200.0,63195.0,0.153026]
[1724439661324,0.0855,63202.0,63197.0,0.0636]
[1724439661527,0.158228,63200.0,63197.0,0.0636]
[1724439661680,0.158231,63199.0,63197.0,0.0636]
[1724439661880,0.316452,63201.0,63197.0,0.0636]
[1724439662136,0.11228953,63200.0,63197.0,0.0636]
[1724439662334,0.11228953,63200.0,63195.0,0.003826]
[1724439662335,0.872487,63196.0,63195.0,0.003826]
[1724439662539,1.20125153,63196.0,63195.0,0.003826]
[1724439662755,1.37645153,63196.0,63195.0,0.003826]
[1724439662987,1.47550519,63196.0,63195.0,0.003826]
[1724439663215,1.63948397,63196.0,63195.0,0.003826]
[1724439663435,1.37645153,63196.0,63195.0,0.003826]
[1724439663642,1.47550343,63196.0,63195.0,0.000826]
[1724439664521,1.37645153,63196.0,63195.0,0.000826]
[1724439664731,1.47650096,63196.0,63195.0,0.005826]
[1724439665077,1.47750096,63196.0,63195.0,0.00700042]
[1724439665280,1.47612013,63196.0,63195.0,0.007]
[1724439665489,0.79097013,63196.0,63195.0,0.007]
[1724439666270,0.79097013,63196.0,63195.0,0.011]
[1724439666583,1.10744513,63196.0,63195.0,0.011]
[1724439666790,1.27142391,63196.0,63195.0,0.011]
[1724439666999,1.10744513,63196.0,63195.0,0.011]
[1724439667200,1.42392013,63196.0,63195.0,0.011]
[1724439667947,1.47642013,63196.0,63195.0,0.011]
[1724439668147,1.79389513,63196.0,63195.0,0.011]
[1724439668788,1.79789513,63196.0,63195.0,0.011]
[1724439669136,1.96187391,63196.0,63195.0,0.007]
[1724439669340,1.96187391,63196.0,63169.0,0.0833]
[1724439669341,0.791512,63170.0,63169.0,0.0693]
[1724439669544,0.48719653,63170.0,63169.0,0.0693]
[1724439669748,0.58719653,63170.0,63169.0,0.0693]
[1724439670274,0.27059153,63170.0,63169.0,0.0693]
[1724439670506,0.11229051,63170.0,63169.0,0.0693]
[1724439670683,0.01229051,63170.0,63169.0,0.0693]
[1724439671042,0.1,63172.0,63169.0,0.0693]
[1724439671164,0.1,63173.0,63169.0,0.0693]
[1724439671372,0.0525,63170.0,63166.0,0.0135603]
[1724439671622,0.57500821,63169.0,63166.0,0.0135603]
[1724439671887,0.99161821,63169.0,63166.0,0.0135603]
[1724439672092,1.42288839,63169.0,63166.0,0.0135603]
[1724439672295,1.42288839,63169.0,63144.0,0.00826]
[1724439672296,0.560584,63160.0,63145.0,0.0678]
[1724439672536,1.92452381,63160.0,63145.0,0.0678]
[1724439672667,2.02452381,63160.0,63145.0,0.0678]
[1724439673000,1.07455581,63160.0,63145.0,0.0678]
[1724439673196,0.11229321,63160.0,63159.0,0.07505]
[1724439673615,0.1,63160.0,63159.0,0.07505]
[1724439673841,0.1,63165.0,63159.0,0.233379]
[1724439673992,0.1,63165.0,63160.0,0.06936616]
[1724439674189,0.1,63171.0,63160.0,0.0662]
[1724439674366,0.30259342,63165.0,63160.0,0.0662]
[1724439674568,0.30259342,63165.0,63160.0,0.0612]
[1724439674772,0.30259342,63165.0,63159.0,0.07505]
[1724439675127,0.158319,63164.0,63159.0,0.07505]
[1724439675319,0.30259342,63165.0,63159.0,0.07505]
[1724439675320,0.158321,63163.0,63159.0,0.07505]
[1724439675588,0.316639,63164.0,63159.0,0.07505]
[1724439675715,0.30659342,63165.0,63159.0,0.07505]
[1724439675716,0.158328,63160.0,63159.0,0.07505]
[1724439676359,0.474984,63160.0,63159.0,0.07505]
[1724439676562,0.79164,63160.0,63159.0,0.07505]
[1724439676725,0.474984,63160.0,63159.0,0.07505]
[1724439676953,0.79164,63160.0,63159.0,0.07505]
[1724439677164,0.89164,63160.0,63159.0,0.00825]
[1724439677542,0.89164,63160.0,63159.0,0.01225]
[1724439677965,0.89164,63160.0,63159.0,0.01325]
[1724439678608,0.574984,63160.0,63159.0,0.01325]
[1724439679083,0.574984,63160.0,63159.0,0.01225]
[1724439679313,0.98364,63160.0,63159.0,0.01225]
[1724439679523,0.98404,63160.0,63159.0,0.01225]
[1724439679724,1.323696,63160.0,63159.0,0.01225]
[1724439679902,1.376196,63160.0,63159.0,0.00825]
[1724439680125,1.55347366,63160.0,63159.0,0.00825]
[1724439680326,1.55347366,63160.0,63159.0,5.9e-07]
[1724439680327,1.87012966,63160.0,63159.0,5.9e-07]
[1724439680458,1.39349488,63160.0,63159.0,5.9e-07]
[1724439681347,1.71015088,63160.0,63159.0,5.9e-07]
[1724439682348,1.71115088,63160.0,63159.0,5.9e-07]
[1724439682608,1.200131,63158.0,63157.0,0.00012]
[1724439682810,1.6370233,63158.0,63157.0,0.00012]
[1724439682944,2.03348403,63158.0,63157.0,0.00012]
[1724439683173,1.62472442,63158.0,63157.0,0.00012]
[1724439683357,1.63701362,63158.0,63157.0,0.00012]
[1724439683574,0.88988162,63158.0,63157.0,0.00012]
[1724439683784,0.88988162,63158.0,63157.0,0.00112]
[1724439683978,1.20954762,63158.0,63157.0,0.00112]
[1724439684186,1.52321362,63158.0,63157.0,0.00012]
[1724439684456,1.52621362,63158.0,63157.0,0.00112]
[1724439684912,1.54021362,63158.0,63157.0,0.00112]
[1724439685070,1.7041924,63158.0,63157.0,0.001947]
[1724439685268,1.54021362,63158.0,63157.0,0.001947]
[1724439685876,1.56321362,63158.0,63157.0,0.001947]
[1724439686083,1.65491362,63158.0,63157.0,0.001947]
[1724439686485,1.64262442,63158.0,63157.0,0.001947]
[1724439686687,1.6549087,63158.0,63157.0,0.001947]
[1724439686902,1.8066032,63158.0,63157.0,0.001947]
[1724439687088,1.87138847,63158.0,63157.0,0.001947]
[1724439687289,2.18805447,63158.0,63157.0,0.001947]
[1724439688017,2.18905447,63158.0,63157.0,0.001947]
[1724439688219,2.18805447,63158.0,63157.0,0.001947]
[1724439688622,2.18905447,63158.0,63157.0,0.001947]
[1724439688820,2.18805447,63158.0,63157.0,0.001947]
[1724439689188,2.13555447,63158.0,63157.0,0.001947]
[1724439689670,1.65491116,63158.0,63157.0,0.001947]
[1724439690055,1.65491116,63158.0,63144.0,0.00826]
[1724439690056,0.791827,63145.0,63144.0,0.00826]
[1724439690265,1.198858,63145.0,63144.0,0.00826]
[1724439690696,1.31114167,63145.0,63144.0,0.00826]
[1724439690885,1.298858,63145.0,63144.0,0.00826]
[1724439691290,1.31114127,63145.0,63144.0,0.00826]
[1724439691463,1.49812005,63145.0,63144.0,0.00826]
[1724439691643,1.49812005,63145.0,63144.0,0.01126]
[1724439692585,1.33414127,63145.0,63144.0,0.01126]
[1724439692771,1.34314127,63145.0,63144.0,0.01126]
[1724439692984,1.02641027,63145.0,63144.0,0.00826]
[1724439693341,0.70067927,63145.0,63144.0,0.00826]
[1724439693589,0.11228327,63145.0,63144.0,0.00826]
[1724439693759,0.019,63145.0,63144.0,0.024706]
[1724439693962,0.019,63145.0,63144.0,0.00826]
[1724439694209,0.014,63145.0,63144.0,0.00826]
[1724439694437,0.30259342,63147.0,63144.0,0.00926]
[1724439694652,0.005,63145.0,63144.0,0.00926]
[1724439694938,0.30259342,63147.0,63144.0,0.00826]
[1724439695488,0.01227543,63146.0,63144.0,0.00826]
[1724439695709,0.30259342,63147.0,63144.0,0.00826]
[1724439695710,0.02627543,63145.0,63144.0,0.00826]
[1724439696100,0.014,63145.0,63144.0,0.64743122]
[1724439696282,0.00090971,63164.0,63145.0,0.1609]
[1724439696422,0.00090971,63164.0,63155.0,0.0706]
[1724439696623,0.00090971,63164.0,63155.0,0.0596]
[1724439696889,0.00090971,63164.0,63156.0,0.00316651]
[1724439697216,0.02483465,63159.0,63156.0,0.00316651]
[1724439697383,0.013,63157.0,63156.0,0.00316651]
[1724439697793,0.013,63157.0,63156.0,0.475014]
[1724439698045,0.013,63157.0,63156.0,0.95569298]
[1724439698216,0.013,63157.0,63156.0,1.27636898]
[1724439698452,0.013,63157.0,63156.0,1.27936898]
[1724439698657,0.013,63157.0,63156.0,0.162338]
[1724439698885,0.013,63157.0,63156.0,0.479014]
[1724439699090,0.013,63157.0,63156.0,0.95969298]
[1724439699290,0.02483465,63159.0,63156.0,0.95969298]
[1724439699291,0.02483465,63159.0,63158.0,0.474999]
[1724439699463,0.02483465,63159.0,63158.0,1.198631]
[1724439699603,0.02483465,63159.0,63158.0,1.269231]
[1724439700008,0.02483465,63159.0,63158.0,0.952565]
[1724439701023,0.02483465,63159.0,63158.0,0.970565]
[1724439701024,0.02583465,63159.0,63158.0,0.970565]
[1724439701428,0.02583465,63159.0,63158.0,1.287231]
[1724439701681,0.02583465,63159.0,63158.0,1.45223398]
[1724439701923,0.0004,63160.0,63158.0,1.45223398]
[1724439701924,0.0004,63160.0,63159.0,1.270013]
[1724439702118,0.0004,63160.0,63159.0,1.43601598]
[1724439702320,0.0004,63160.0,63159.0,1.75467698]
[1724439702903,0.00090971,63164.0,63163.0,1.590584]
[1724439703115,0.00090971,63164.0,63163.0,1.75458698]
[1724439703496,0.00090971,63164.0,63163.0,2.07122798]
[1724439704108,0.14195776,63195.0,63194.0,0.158242]
[1724439704109,0.04975776,63195.0,63194.0,0.158242]
[1724439704308,0.04975776,63195.0,63194.0,0.882112]
[1724439704518,4e-05,63196.0,63195.0,0.15824]
[1724439704721,4e-05,63196.0,63195.0,0.47472]
[1724439704932,4e-05,63196.0,63195.0,0.8614]
[1724439705125,4e-05,63196.0,63195.0,1.17788]
[1724439706094,4e-05,63196.0,63195.0,0.0702]
[1724439706318,0.341331,63196.0,63181.0,0.316549]
[1724439706533,0.341331,63196.0,63175.0,0.1611]
[1724439706534,0.024856,63196.0,63190.0,0.158251]
[1724439706770,0.024856,63196.0,63195.0,0.011]
[1724439706964,0.024856,63196.0,63195.0,0.025]
[1724439707293,0.024856,63196.0,63190.0,0.31966879]
[1724439707498,0.024856,63196.0,63192.0,0.158246]
[1724439708043,0.024856,63196.0,63192.0,0.158247]
[1724439708797,0.024856,63196.0,63191.0,0.316499]
[1724439709027,0.024856,63196.0,63193.0,0.158244]
[1724439709221,0.024856,63196.0,63195.0,0.015]
[1724439709446,0.024856,63196.0,63195.0,0.006]
[1724439709652,0.024856,63196.0,63193.0,0.158243]
[1724439709862,0.024856,63196.0,63192.0,0.167246]
[1724439710068,0.024856,63196.0,63192.0,0.009]
[1724439710411,0.024856,63196.0,63192.0,0.167247]
[1724439710537,0.024856,63196.0,63188.0,0.232555]
[1724439710740,0.02576571,63196.0,63193.0,0.006]
[1724439711374,0.02576571,63196.0,63195.0,0.009]
[1724439712532,0.02576571,63196.0,63193.0,0.164244]
[1724439712733,0.02576571,63196.0,63193.0,0.006]
[1724439712939,0.158242,63194.0,63193.0,0.015]
[1724439713211,0.762927,63194.0,63193.0,0.006]
[1724439713425,0.762927,63194.0,63175.0,0.0746]
[1724439713426,0.158258,63188.0,63175.0,0.0746]
[1724439713558,0.1,63187.0,63176.0,0.49229154]
[1724439713757,0.0937,63186.0,63179.0,0.15828]
[1724439714086,0.0937,63186.0,63181.0,0.158274]
[1724439714087,0.0248247,63185.0,63181.0,0.158274]
[1724439714298,0.1248247,63185.0,63181.0,0.158274]
[1724439714666,0.1248247,63185.0,63182.0,0.158272]
[1724439714867,0.1248247,63185.0,63180.0,0.474827]
[1724439715094,0.1248247,63185.0,63181.0,0.158274]
[1724439715299,0.1248247,63185.0,63181.0,0.007]
[1724439715471,0.1248247,63185.0,63181.0,0.165274]
[1724439715671,0.0248247,63185.0,63181.0,0.007]
[1724439715876,0.0248247,63185.0,63181.0,0.165274]
[1724439716082,0.0248247,63185.0,63181.0,0.007]
[1724439716504,0.0248247,63185.0,63180.0,0.158277]
[1724439716947,0.0258247,63185.0,63180.0,0.165277]
[1724439717118,0.0258247,63185.0,63181.0,0.01]
[1724439717343,0.0258247,63185.0,63180.0,0.165277]
[1724439717529,0.0258247,63185.0,63184.0,0.316535]
[1724439717725,0.0258247,63185.0,63184.0,0.791337]
[1724439717954,0.0248247,63185.0,63184.0,0.864337]
[1724439718163,0.0248247,63185.0,63184.0,1.180872]
[1724439718351,0.0258247,63185.0,63184.0,1.180872]
[1724439719198,0.0258247,63185.0,63184.0,1.43917498]
[1724439719411,0.0258247,63185.0,63184.0,1.75670998]
[1724439719612,0.0248247,63185.0,63184.0,1.75670998]
[1724439719943,0.0258247,63185.0,63184.0,1.76370998]